fUST/lending_fUST_20250513
["ID","MTS","AMOUNT","RATE_DAILY","PERIOD"]
[360881663,1747098636129,-400.0,0.00019178,2]
[360881664,1747098636139,-400.0,0.00019178,2]
[360881665,1747098636148,-400.0,0.00019178,2]
[360881666,1747098636157,-400.0,0.00019178,2]
[360881667,1747098636167,-636.38,0.00019178,2]
[360881668,1747098636176,-400.0,0.00019178,2]
[360881669,1747098636186,-500.0,0.00019178,2]
[360881670,1747098636195,-1313.76,0.00019178,2]
[360881671,1747098636205,-548.73,0.00019178,2]
[360881672,1747098636214,-400.0,0.00019178,2]
[360881673,1747098636223,-400.0,0.00019178,2]
[360881674,1747098636233,-802.84,0.00019178,2]
[360881675,1747098636242,-687.8,0.00019178,2]
[360881676,1747098636252,-400.0,0.00019178,2]
[360881677,1747098636262,-400.0,0.00019178,2]
[360881678,1747098636271,-400.0,0.00019178,2]
[360881679,1747098636281,-400.0,0.00019178,2]
[360881680,1747098636290,-468.16,0.00019178,2]
[360881681,1747098636300,-400.0,0.00019178,2]
[360881682,1747098636311,-400.0,0.00019178,2]
[360881683,1747098636323,-400.0,0.00019178,2]
[360881684,1747098636333,-400.0,0.00019178,2]
[360881685,1747098636344,-245.872937,0.00019178,2]
[360881686,1747098636355,-245.872937,0.00019178,2]
[360881687,1747098636364,-400.0,0.00019178,2]
[360881688,1747098636375,-245.872937,0.00019178,2]
[360881689,1747098636386,-245.872937,0.00019178,2]
[360881690,1747098636396,-400.0,0.00019178,2]
[360881691,1747098636406,-438.64,0.00019178,2]
[360881692,1747098636415,-400.0,0.00019178,2]
[360881693,1747098636425,-400.0,0.00019178,2]
[360881694,1747098636434,-245.872937,0.00019178,2]
[360881695,1747098636444,-706.39,0.00019178,2]
[360881696,1747098636453,-400.0,0.00019178,2]
[360881697,1747098636463,-245.872937,0.00019178,2]
[360881698,1747098636473,-245.872937,0.00019178,2]
[360881699,1747098636487,-245.872937,0.00019178,2]
[360881700,1747098636496,-389.90678168,0.00019178,2]
[360881701,1747098636505,-400.0,0.00019178,2]
[360881702,1747098636515,-39.68169834,0.00019178,2]
[360881703,1747098636999,-360.31830166,0.00019178,2]
[360881704,1747098637009,-834.0,0.00019178,2]
[360881705,1747098637019,-400.0,0.00019178,2]
[360881706,1747098637028,-1370.69,0.00019178,2]
[360881707,1747098637038,-2237.69,0.00019178,2]
[360881708,1747098637047,-400.0,0.00019178,2]
[360881709,1747098637057,-400.0,0.00019178,2]
[360881710,1747098637066,-400.0,0.00019178,2]
[360881711,1747098637075,-400.0,0.00019178,2]
[360881712,1747098637086,-453.97,0.00019178,2]
[360881713,1747098637095,-968.37,0.00019178,2]
[360881714,1747098637104,-400.0,0.00019178,2]
[360881715,1747098637355,-400.0,0.00019178,2]
[360881716,1747098637368,-1235.31,0.00019178,2]
[360881717,1747098637378,-231.053737,0.00019178,2]
[360881718,1747098637388,-231.053737,0.00019178,2]
[360881719,1747098637397,-231.053737,0.00019178,2]
[360881720,1747098637407,-400.0,0.00019178,2]
[360881721,1747098637418,-231.053737,0.00019178,2]
[360881722,1747098637428,-400.0,0.00019178,2]
[360881723,1747098637438,-151.0,0.00019178,2]
[360881724,1747098637448,-231.053737,0.00019178,2]
[360881725,1747098637458,-151.0,0.00019178,2]
[360881726,1747098637468,-231.053737,0.00019178,2]
[360881728,1747098637482,-400.0,0.00019178,2]
[360881729,1747098637492,-231.053737,0.00019178,2]
[360881731,1747098637502,-151.0,0.00019178,2]
[360881733,1747098637511,-231.053737,0.00019178,2]
[360881735,1747098637521,-151.0,0.00019178,2]
[360881737,1747098637530,-639.59,0.00019178,2]
[360881739,1747098637539,-400.0,0.00019178,2]
[360881741,1747098637549,-400.0,0.00019178,2]
[360881742,1747098637559,-400.0,0.00019178,2]
[360881743,1747098637569,-1027.88,0.00019178,2]
[360881744,1747098637579,-400.0,0.00019178,2]
[360881745,1747098637597,-400.0,0.00019178,2]
[360881746,1747098637608,-400.0,0.00019178,2]
[360881747,1747098637624,-400.0,0.00019178,2]
[360881749,1747098637634,-519.95850509,0.00019178,2]
[360881751,1747098637644,-1052.08,0.00019178,2]
[360881753,1747098637655,-400.0,0.00019178,2]
[360881755,1747098637665,-400.0,0.00019178,2]
[360881757,1747098637674,-400.0,0.00019178,2]
[360881759,1747098637684,-700.094129,0.00019178,2]
[360881761,1747098637693,-400.0,0.00019178,2]
[360881763,1747098637703,-700.094129,0.00019178,2]
[360881765,1747098637714,-700.094129,0.00019178,2]
[360881767,1747098637725,-700.094129,0.00019178,2]
[360881769,1747098637736,-916.47,0.00019178,2]
[360881771,1747098637747,-400.0,0.00019178,2]
[360881773,1747098637758,-487.36,0.00019178,2]
[360881775,1747098637768,-700.094129,0.00019178,2]
[360881777,1747098637779,-700.094129,0.00019178,2]
[360881779,1747098637788,-400.0,0.00019178,2]
[360881781,1747098637799,-700.094129,0.00019178,2]
[360881783,1747098637809,-700.094129,0.00019178,2]
[360881785,1747098637819,-151.0,0.00019178,2]
[360881787,1747098637828,-151.0,0.00019178,2]
[360881789,1747098637838,-151.0,0.00019178,2]
[360881791,1747098637850,-671.92,0.00019178,2]
[360881793,1747098637860,-400.0,0.00019178,2]
[360881795,1747098637870,-151.0,0.00019178,2]
[360881797,1747098637879,-269.615783,0.00019178,2]
[360881799,1747098637888,-269.615783,0.00019178,2]
[360881800,1747098637898,-269.615783,0.00019178,2]
[360881802,1747098637907,-269.615783,0.00019178,2]
[360881803,1747098637916,-400.0,0.00019178,2]
[360881804,1747098637926,-269.615783,0.00019178,2]
[360881805,1747098637936,-269.615783,0.00019178,2]
[360881807,1747098637945,-269.615783,0.00019178,2]
[360881809,1747098637955,-655.61,0.00019178,2]
[360881810,1747098637964,-269.615783,0.00019178,2]
[360881811,1747098637974,-400.0,0.00019178,2]
[360881812,1747098637983,-400.0,0.00019178,2]
[360881813,1747098637992,-400.0,0.00019178,2]
[360881814,1747098638003,-400.0,0.00019178,2]
[360881815,1747098638012,-1213.77,0.00019178,2]
[360881816,1747098638021,-673.81,0.00019178,2]
[360881817,1747098638030,-400.0,0.00019178,2]
[360881818,1747098638039,-2016.99,0.00019178,2]
[360881819,1747098638048,-400.0,0.00019178,2]
[360881820,1747098638057,-400.0,0.00019178,2]
[360881821,1747098638067,-820.13,0.00019178,2]
[360881822,1747098638076,-400.0,0.00019178,2]
[360881823,1747098638085,-400.0,0.00019178,2]
[360881824,1747098638096,-1305.22,0.00019178,2]
[360881825,1747098638105,-400.0,0.00019178,2]
[360881826,1747098638115,-464.41977603,0.00019178,2]
[360881827,1747098638124,-400.0,0.00019178,2]
[360881828,1747098638133,-400.0,0.00019178,2]
[360881829,1747098638142,-529.53,0.00019178,2]
[360881830,1747098638151,-400.0,0.00019178,2]
[360881831,1747098638160,-400.0,0.00019178,2]
[360881832,1747098638169,-305.69582491,0.00019178,2]
[360881833,1747098638179,-400.0,0.00019178,2]
[360881834,1747098638189,-645.29,0.00019178,2]
[360881835,1747098638200,-1061.53,0.00019178,2]
[360881836,1747098638209,-2103.18,0.00019178,2]
[360881837,1747098638218,-461.54063522,0.00019178,2]
[360881838,1747098638228,-400.0,0.00019178,2]
[360881839,1747098638237,-400.0,0.00019178,2]
[360881840,1747098638247,-909.02,0.00019178,2]
[360881841,1747098638256,-400.0,0.00019178,2]
[360881842,1747098638265,-400.0,0.00019178,2]
[360881843,1747098638275,-400.0,0.00019178,2]
[360881844,1747098638284,-400.0,0.00019178,2]
[360881845,1747098638293,-594.41,0.00019178,2]
[360881846,1747098638303,-2696.87,0.00019178,2]
[360881847,1747098638312,-400.0,0.00019178,2]
[360881848,1747098638322,-1546.68,0.00019178,2]
[360881849,1747098638331,-939.14,0.00019178,2]
[360881850,1747098638341,-400.0,0.00019178,2]
[360881851,1747098638352,-544.08010736,0.00019178,2]
[360881852,1747098638361,-1016.88,0.00019178,2]
[360881853,1747098638371,-400.0,0.00019178,2]
[360881854,1747098638380,-516.0483265,0.00019178,2]
[360881855,1747098638390,-400.0,0.00019178,2]
[360881856,1747098638399,-400.0,0.00019178,2]
[360881857,1747098638409,-400.0,0.00019178,2]
[360881858,1747098638418,-400.0,0.00019178,2]
[360881859,1747098638428,-572.46,0.00019178,2]
[360881860,1747098638437,-400.0,0.00019178,2]
[360881861,1747098638446,-400.0,0.00019178,2]
[360881862,1747098638456,-400.0,0.00019178,2]
[360881863,1747098638466,-485.73,0.00019178,2]
[360881864,1747098638475,-400.0,0.00019178,2]
[360881865,1747098638485,-1320.61,0.00019178,2]
[360881866,1747098638494,-400.0,0.00019178,2]
[360881867,1747098638503,-501.19877785,0.00019178,2]
[360881868,1747098638513,-400.0,0.00019178,2]
[360881869,1747098638523,-618.95,0.00019178,2]
[360881870,1747098638532,-400.0,0.00019178,2]
[360881871,1747098638541,-400.0,0.00019178,2]
[360881872,1747098638551,-400.0,0.00019178,2]
[360881873,1747098638560,-239.15417733,0.00019178,2]
[360881874,1747098638569,-400.0,0.00019178,2]
[360881875,1747098638579,-683.38,0.00019178,2]
[360881876,1747098638588,-151.0,0.00019178,2]
[360881877,1747098638598,-400.0,0.00019178,2]
[360881878,1747098638610,-151.0,0.00019178,2]
[360881879,1747098638619,-477.64,0.00019178,2]
[360881880,1747098638629,-400.0,0.00019178,2]
[360881881,1747098638639,-151.0,0.00019178,2]
[360881882,1747098638648,-151.0,0.00019178,2]
[360881883,1747098638658,-400.0,0.00019178,2]
[360881884,1747098638667,-1137.63,0.00019178,2]
[360881885,1747098638677,-1157.55,0.00019178,2]
[360881886,1747098638686,-400.0,0.00019178,2]
[360881887,1747098638698,-748.45,0.00019178,2]
[360881888,1747098638707,-758.33,0.00019178,2]
[360881889,1747098638717,-1000.0,0.00019178,2]
[360881890,1747098638727,-511.28,0.00019178,2]
[360881891,1747098638736,-605.08,0.00019178,2]
[360881892,1747098638746,-394.16704078,0.00019178,2]
[360881893,1747098638755,-400.0,0.00019178,2]
[360881894,1747098638765,-400.0,0.00019178,2]
[360881895,1747098638774,-400.0,0.00019178,2]
[360881896,1747098638785,-400.0,0.00019178,2]
[360881897,1747098638794,-358.0,0.00019178,2]
[360881898,1747098638803,-632.59,0.00019178,2]
[360881899,1747098638812,-400.0,0.00019178,2]
[360881900,1747098638822,-400.0,0.00019178,2]
[360881901,1747098638831,-2571.49,0.00019178,2]
[360881902,1747098638840,-438.72,0.00019178,2]
[360881903,1747098638851,-400.0,0.00019178,2]
[360881904,1747098638860,-246.168612,0.00019178,2]
[360881905,1747098638870,-639.07,0.00019178,2]
[360881906,1747098638879,-400.0,0.00019178,2]
[360881907,1747098638889,-400.0,0.00019178,2]
[360881908,1747098638898,-400.0,0.00019178,2]
[360881909,1747098638908,-753.58,0.00019178,2]
[360881910,1747098638917,-1012.55,0.00019178,2]
[360881911,1747098638927,-400.0,0.00019178,2]
[360881912,1747098638936,-400.0,0.00019178,2]
[360881913,1747098638945,-1417.3,0.00019178,2]
[360881914,1747098638955,-400.0,0.00019178,2]
[360881915,1747098638964,-400.0,0.00019178,2]
[360881916,1747098638973,-400.0,0.00019178,2]
[360881917,1747098638983,-400.0,0.00019178,2]
[360881918,1747098638991,-400.0,0.00019178,2]
[360881919,1747098639001,-400.0,0.00019178,2]
[360881920,1747098639011,-928.93,0.00019178,2]
[360881921,1747098639020,-1114.67,0.00019178,2]
[360881922,1747098639029,-400.0,0.00019178,2]
[360881923,1747098639037,-400.0,0.00019178,2]
[360881924,1747098639046,-400.0,0.00019178,2]
[360881925,1747098639056,-400.0,0.00019178,2]
[360881926,1747098639064,-400.0,0.00019178,2]
[360881927,1747098639074,-553.33,0.00019178,2]
[360881928,1747098639083,-400.0,0.00019178,2]
[360881929,1747098639092,-400.0,0.00019178,2]
[360881930,1747098639103,-400.0,0.00019178,2]
[360881931,1747098639112,-400.0,0.00019178,2]
[360881932,1747098639120,-491.85,0.00019178,2]
[360881933,1747098639130,-448.59,0.00019178,2]
[360881934,1747098639139,-400.0,0.00019178,2]
[360881935,1747098639148,-729.87,0.00019178,2]
[360881936,1747098639157,-400.0,0.00019178,2]
[360881937,1747098639166,-400.0,0.00019178,2]
[360881938,1747098639175,-400.0,0.00019178,2]
[360881939,1747098639184,-1404.39,0.00019178,2]
[360881940,1747098639193,-400.0,0.00019178,2]
[360881941,1747098639202,-1171.69,0.00019178,2]
[360881942,1747098639211,-400.0,0.00019178,2]
[360881943,1747098639220,-400.0,0.00019178,2]
[360881944,1747098639230,-692.47,0.00019178,2]
[360881945,1747098639239,-400.0,0.00019178,2]
[360881946,1747098639248,-400.0,0.00019178,2]
[360881947,1747098639258,-400.0,0.00019178,2]
[360881948,1747098639267,-400.0,0.00019178,2]
[360881949,1747098639277,-1362.85,0.00019178,2]
[360881950,1747098639286,-548.82,0.00019178,2]
[360881951,1747098639295,-400.0,0.00019178,2]
[360881952,1747098639304,-400.0,0.00019178,2]
[360881953,1747098639314,-400.0,0.00019178,2]
[360881954,1747098639323,-468.93,0.00019178,2]
[360881955,1747098639333,-455.7,0.00019178,2]
[360881956,1747098639343,-400.0,0.00019178,2]
[360881957,1747098639352,-400.0,0.00019178,2]
[360881958,1747098639362,-482.62,0.00019178,2]
[360881959,1747098639371,-219.405713,0.00019178,2]
[360881960,1747098639380,-400.0,0.00019178,2]
[360881961,1747098639390,-400.0,0.00019178,2]
[360881962,1747098639399,-219.405713,0.00019178,2]
[360881963,1747098639408,-3029.53,0.00019178,2]
[360881964,1747098639418,-219.405713,0.00019178,2]
[360881965,1747098639427,-938.16,0.00019178,2]
[360881966,1747098639437,-219.405713,0.00019178,2]
[360881967,1747098639446,-400.0,0.00019178,2]
[360881968,1747098639456,-3234.33,0.00019178,2]
[360881969,1747098639466,-219.405713,0.00019178,2]
[360881970,1747098639475,-219.405713,0.00019178,2]
[360881971,1747098639485,-400.0,0.00019178,2]
[360881972,1747098639495,-219.405713,0.00019178,2]
[360881973,1747098639504,-400.0,0.00019178,2]
[360881974,1747098639514,-219.405713,0.00019178,2]
[360881975,1747098639523,-151.0,0.00019178,2]
[360881976,1747098639533,-151.0,0.00019178,2]
[360881977,1747098639543,-151.0,0.00019178,2]
[360881978,1747098639553,-160.661526,0.00019178,2]
[360881979,1747098639564,-400.0,0.00019178,2]
[360881980,1747098639575,-1483.88,0.00019178,2]
[360881981,1747098639586,-400.0,0.00019178,2]
[360881982,1747098639598,-739.85,0.00019178,2]
[360881983,1747098639609,-507.42,0.00019178,2]
[360881984,1747098639622,-400.0,0.00019178,2]
[360881985,1747098639632,-2088.01,0.00019178,2]
[360881986,1747098639642,-407.34,0.00019178,2]
[360881987,1747098639652,-400.0,0.00019178,2]
[360881988,1747098639662,-400.0,0.00019178,2]
[360881989,1747098639672,-400.0,0.00019178,2]
[360881990,1747098639682,-2448.25,0.00019178,2]
[360881991,1747098639692,-400.0,0.00019178,2]
[360881992,1747098639702,-202.85854791,0.00019178,2]
[360881993,1747098639711,-400.0,0.00019178,2]
[360881994,1747098639721,-917.65,0.00019178,2]
[360881995,1747098639730,-1915.69,0.00019178,2]
[360881996,1747098639739,-400.0,0.00019178,2]
[360881997,1747098639749,-3774.44,0.00019178,2]
[360881998,1747098639758,-400.0,0.00019178,2]
[360881999,1747098639768,-400.0,0.00019178,2]
[360882000,1747098639777,-400.0,0.00019178,2]
[360882001,1747098639787,-400.0,0.00019178,2]
[360882002,1747098639797,-400.0,0.00019178,2]
[360882003,1747098639806,-400.0,0.00019178,2]
[360882004,1747098639816,-400.0,0.00019178,2]
[360882006,1747098639825,-542.47887358,0.00019178,2]
[360882007,1747098639834,-400.0,0.00019178,2]
[360882008,1747098639846,-2456.77,0.00019178,2]
[360882009,1747098639855,-400.0,0.00019178,2]
[360882010,1747098639865,-400.0,0.00019178,2]
[360882011,1747098639874,-422.02,0.00019178,2]
[360882012,1747098639884,-400.0,0.00019178,2]
[360882013,1747098639893,-151.0,0.00019178,2]
[360882014,1747098639903,-151.0,0.00019178,2]
[360882015,1747098639912,-151.0,0.00019178,2]
[360882016,1747098639921,-151.0,0.00019178,2]
[360882017,1747098639931,-400.0,0.00019178,2]
[360882018,1747098639940,-400.0,0.00019178,2]
[360882019,1747098639950,-952.62,0.00019178,2]
[360882020,1747098639959,-1085.29,0.00019178,2]
[360882021,1747098639968,-1580.635233,0.00019178,2]
[360882022,1747098639978,-1580.635233,0.00019178,2]
[360882024,1747098639987,-1580.635233,0.00019178,2]
[360882025,1747098639996,-1580.635233,0.00019178,2]
[360882026,1747098640006,-775.51,0.00019178,2]
[360882027,1747098640015,-400.0,0.00019178,2]
[360882028,1747098640025,-2348.25,0.00019178,2]
[360882029,1747098640034,-400.0,0.00019178,2]
[360882030,1747098640043,-1316.53,0.00019178,2]
[360882032,1747098640052,-400.0,0.00019178,2]
[360882034,1747098640061,-729.25,0.00019178,2]
[360882036,1747098640072,-416.14,0.00019178,2]
[360882038,1747098640081,-800.0,0.00019178,2]
[360882040,1747098640090,-400.0,0.00019178,2]
[360882042,1747098640102,-1578.15,0.00019178,2]
[360882044,1747098640111,-400.0,0.00019178,2]
[360882046,1747098640121,-400.0,0.00019178,2]
[360882048,1747098640130,-400.0,0.00019178,2]
[360882050,1747098640140,-583.63,0.00019178,2]
[360882052,1747098640150,-400.0,0.00019178,2]
[360882054,1747098640159,-320.0,0.00019178,2]
[360882056,1747098640169,-605.02,0.00019178,2]
[360882058,1747098640179,-1302.7,0.00019178,2]
[360882060,1747098640189,-4004.76,0.00019178,2]
[360882062,1747098640198,-400.0,0.00019178,2]
[360882064,1747098640207,-2610.37,0.00019178,2]
[360882066,1747098640217,-285.43065449,0.00019178,2]
[360882068,1747098640226,-510.29,0.00019178,2]
[360882070,1747098640235,-440.04,0.00019178,2]
[360882072,1747098640244,-400.0,0.00019178,2]
[360882074,1747098640253,-400.0,0.00019178,2]
[360882075,1747098640263,-424.44,0.00019178,2]
[360882077,1747098640273,-1453.47,0.00019178,2]
[360882078,1747098640282,-400.0,0.00019178,2]
[360882080,1747098640291,-400.0,0.00019178,2]
[360882081,1747098640300,-526.94739218,0.00019178,2]
[360882083,1747098640310,-400.0,0.00019178,2]
[360882085,1747098640319,-400.0,0.00019178,2]
[360882086,1747098640328,-400.0,0.00019178,2]
[360882087,1747098640338,-400.0,0.00019178,2]
[360882089,1747098640348,-400.0,0.00019178,2]
[360882090,1747098640358,-444.48,0.00019178,2]
[360882091,1747098640367,-1096.53,0.00019178,2]
[360882092,1747098640377,-519.74,0.00019178,2]
[360882093,1747098640386,-400.0,0.00019178,2]
[360882094,1747098640396,-400.0,0.00019178,2]
[360882095,1747098640406,-854.31,0.00019178,2]
[360882096,1747098640415,-400.0,0.00019178,2]
[360882097,1747098640425,-477.28,0.00019178,2]
[360882098,1747098640435,-400.0,0.00019178,2]
[360882099,1747098640445,-400.0,0.00019178,2]
[360882100,1747098640455,-654.74,0.00019178,2]
[360882101,1747098640464,-400.0,0.00019178,2]
[360882102,1747098640474,-400.0,0.00019178,2]
[360882103,1747098640483,-400.0,0.00019178,2]
[360882104,1747098640493,-400.0,0.00019178,2]
[360882105,1747098640503,-1097.02,0.00019178,2]
[360882106,1747098640512,-400.0,0.00019178,2]
[360882107,1747098640521,-454.65,0.00019178,2]
[360882109,1747098640530,-400.0,0.00019178,2]
[360882111,1747098640540,-400.0,0.00019178,2]
[360882112,1747098640549,-400.0,0.00019178,2]
[360882114,1747098640559,-151.0,0.00019178,2]
[360882116,1747098640568,-1269.78,0.00019178,2]
[360882117,1747098640577,-151.0,0.00019178,2]
[360882118,1747098640586,-151.0,0.00019178,2]
[360882119,1747098640597,-400.0,0.00019178,2]
[360882120,1747098640606,-151.0,0.00019178,2]
[360882121,1747098640618,-400.0,0.00019178,2]
[360882122,1747098640627,-400.0,0.00019178,2]
[360882123,1747098640637,-400.0,0.00019178,2]
[360882124,1747098640646,-533.18995938,0.00019178,2]
[360882125,1747098640657,-1209.28,0.00019178,2]
[360882126,1747098640667,-400.0,0.00019178,2]
[360882127,1747098640676,-468.61,0.00019178,2]
[360882128,1747098640686,-438.36,0.00019178,2]
[360882129,1747098640697,-400.0,0.00019178,2]
[360882130,1747098640707,-400.0,0.00019178,2]
[360882131,1747098640718,-797.6,0.00019178,2]
[360882132,1747098640728,-520.11,0.00019178,2]
[360882133,1747098640737,-400.0,0.00019178,2]
[360882134,1747098640747,-151.0,0.00019178,2]
[360882135,1747098640756,-400.0,0.00019178,2]
[360882136,1747098640765,-400.0,0.00019178,2]
[360882137,1747098640775,-151.0,0.00019178,2]
[360882138,1747098640784,-151.0,0.00019178,2]
[360882139,1747098640794,-302.039964,0.00019178,2]
[360882140,1747098640803,-151.0,0.00019178,2]
[360882141,1747098640813,-302.039964,0.00019178,2]
[360882142,1747098640823,-1303.93,0.00019178,2]
[360882143,1747098640832,-302.039964,0.00019178,2]
[360882144,1747098640842,-302.039964,0.00019178,2]
[360882145,1747098640852,-2508.58,0.00019178,2]
[360882146,1747098640863,-400.0,0.00019178,2]
[360882147,1747098640873,-151.0,0.00019178,2]
[360882148,1747098640882,-151.0,0.00019178,2]
[360882149,1747098640891,-151.0,0.00019178,2]
[360882150,1747098640901,-151.0,0.00019178,2]
[360882151,1747098640910,-400.0,0.00019178,2]
[360882152,1747098640920,-151.0,0.00019178,2]
[360882153,1747098640929,-302.039964,0.00019178,2]
[360882154,1747098640938,-151.0,0.00019178,2]
[360882155,1747098640948,-151.0,0.00019178,2]
[360882156,1747098640959,-302.039964,0.00019178,2]
[360882157,1747098640968,-302.039964,0.00019178,2]
[360882158,1747098640978,-151.0,0.00019178,2]
[360882159,1747098640988,-151.0,0.00019178,2]
[360882160,1747098640997,-302.039964,0.00019178,2]
[360882161,1747098641007,-151.0,0.00019178,2]
[360882162,1747098641016,-151.0,0.00019178,2]
[360882163,1747098641025,-400.0,0.00019178,2]
[360882164,1747098641035,-713.11,0.00019178,2]
[360882165,1747098641045,-151.0,0.00019178,2]
[360882166,1747098641054,-151.0,0.00019178,2]
[360882167,1747098641064,-400.0,0.00019178,2]
[360882168,1747098641073,-716.75,0.00019178,2]
[360882169,1747098641083,-400.0,0.00019178,2]
[360882170,1747098641093,-1064.66,0.00019178,2]
[360882171,1747098641103,-400.0,0.00019178,2]
[360882172,1747098641113,-3720.23,0.00019178,2]
[360882173,1747098641122,-541.25,0.00019178,2]
[360882174,1747098641131,-151.0,0.00019178,2]
[360882175,1747098641140,-151.0,0.00019178,2]
[360882176,1747098641150,-151.0,0.00019178,2]
[360882177,1747098641159,-614.79,0.00019178,2]
[360882178,1747098641169,-151.0,0.00019178,2]
[360882179,1747098641178,-4673.87,0.00019178,2]
[360882180,1747098641188,-194.198385,0.00019178,2]
[360882181,1747098641198,-400.0,0.00019178,2]
[360882182,1747098641208,-1007.11,0.00019178,2]
[360882183,1747098641218,-400.0,0.00019178,2]
[360882184,1747098641227,-517.23,0.00019178,2]
[360882185,1747098641237,-754.27,0.00019178,2]
[360882186,1747098641247,-400.0,0.00019178,2]
[360882187,1747098641257,-24496.19,0.00019178,2]
[360882188,1747098641267,-3610.14,0.00019178,2]
[360882189,1747098641276,-400.0,0.00019178,2]
[360882190,1747098641286,-4233.14,0.00019178,2]
[360882191,1747098641296,-604.94,0.00019178,2]
[360882192,1747098641306,-451.91,0.00019178,2]
[360882193,1747098641316,-400.0,0.00019178,2]
[360882194,1747098641326,-1321.07,0.00019178,2]
[360882195,1747098641336,-1744.42,0.00019178,2]
[360882196,1747098641348,-1013.54,0.00019178,2]
[360882197,1747098641357,-400.0,0.00019178,2]
[360882198,1747098641575,-716.19,0.00019178,2]
[360882199,1747098641585,-400.0,0.00019178,2]
[360882200,1747098641596,-400.0,0.00019178,2]
[360882201,1747098641608,-4858.27,0.00019178,2]
[360882202,1747098641622,-400.0,0.00019178,2]
[360882203,1747098641632,-400.0,0.00019178,2]
[360882204,1747098641642,-400.0,0.00019178,2]
[360882205,1747098641652,-181.999241,0.00019178,2]
[360882206,1747098641663,-181.999241,0.00019178,2]
[360882207,1747098641672,-568.61,0.00019178,2]
[360882208,1747098641682,-181.999241,0.00019178,2]
[360882209,1747098641694,-1247.84,0.00019178,2]
[360882210,1747098641706,-181.999241,0.00019178,2]
[360882211,1747098641717,-709.17,0.00019178,2]
[360882212,1747098641727,-466.35,0.00019178,2]
[360882213,1747098641737,-717.9,0.00019178,2]
[360882214,1747098641746,-712.83,0.00019178,2]
[360882215,1747098641756,-181.999241,0.00019178,2]
[360882216,1747098641766,-400.0,0.00019178,2]
[360882217,1747098641775,-181.999241,0.00019178,2]
[360882218,1747098641784,-181.999241,0.00019178,2]
[360882219,1747098641794,-181.999241,0.00019178,2]
[360882220,1747098641803,-400.0,0.00019178,2]
[360882221,1747098641813,-400.0,0.00019178,2]
[360882222,1747098641823,-3067.68,0.00019178,2]
[360882223,1747098641832,-400.0,0.00019178,2]
[360882224,1747098641843,-400.0,0.00019178,2]
[360882225,1747098641854,-1326.76,0.00019178,2]
[360882226,1747098641863,-400.0,0.00019178,2]
[360882227,1747098641872,-1721.49,0.00019178,2]
[360882228,1747098641882,-400.0,0.00019178,2]
[360882229,1747098641892,-429.34,0.00019178,2]
[360882230,1747098641904,-2064.72,0.00019178,2]
[360882231,1747098641914,-400.0,0.00019178,2]